fUSD/lending_fUSD_20250305
["ID","MTS","AMOUNT","RATE_DAILY","PERIOD"]
[355457784,1741183852969,-405.965056,0.00011372,2]
[355457785,1741183852979,-500.0,0.00011372,2]
[355457786,1741183852989,-500.0,0.00011372,2]
[355457787,1741183852998,-500.0,0.00011372,2]
[355457788,1741183853008,-506.58,0.00011372,2]
[355457789,1741183853018,-500.0,0.00011372,2]
[355457790,1741183853027,-500.0,0.00011372,2]
[355457791,1741183853037,-843.12,0.00011372,2]
[355457792,1741183853047,-562.96,0.00011372,2]
[355457793,1741183853057,-546.47,0.00011372,2]
[355457794,1741183853067,-704.58,0.00011372,2]
[355457795,1741183853077,-961.51,0.00011372,2]
[355457796,1741183853086,-500.0,0.00011372,2]
[355457797,1741183853096,-500.0,0.00011372,2]
[355457798,1741183853107,-298.314117,0.00011372,2]
[355457799,1741183853117,-685.19,0.00011372,2]
[355457800,1741183853127,-500.0,0.00011372,2]
[355457801,1741183853395,-1046.71,0.00011372,2]
[355457802,1741183853406,-255.21314677,0.00011372,2]
[355457803,1741183853415,-500.0,0.00011372,2]
[355457804,1741183853424,-500.0,0.00011372,2]
[355457805,1741183853434,-591.2,0.00011372,2]
[355457806,1741183853443,-500.0,0.00011372,2]
[355457807,1741183853452,-517.23,0.00011372,2]
[355457808,1741183853463,-500.0,0.00011372,2]
[355457809,1741183853472,-536.8,0.00011372,2]
[355457810,1741183853481,-541.51,0.00011372,2]
[355457811,1741183853491,-500.0,0.00011372,2]
[355457812,1741183853501,-500.0,0.00011372,2]
[355457813,1741183853510,-1260.63,0.00011372,2]
[355457814,1741183853519,-566.95,0.00011372,2]
[355457815,1741183853528,-500.0,0.00011372,2]
[355457816,1741183853538,-742.26,0.00011372,2]
[355457817,1741183853548,-342.67973983,0.00011372,2]
[355457818,1741183853557,-533.31061908,0.00011372,2]
[355457819,1741183853567,-1200.56,0.00011372,2]
[355457820,1741183853577,-500.0,0.00011372,2]
[355457821,1741183853587,-500.0,0.00011372,2]
[355457822,1741183853596,-500.0,0.00011372,2]
[355457823,1741183853606,-262.34393562,0.00011372,2]
[355457824,1741183853616,-517.98,0.00011372,2]
[355457825,1741183853625,-156.24036774,0.00011372,2]
[355457826,1741183853635,-789.65,0.00011372,2]
[355457827,1741183853645,-533.44,0.00011372,2]
[355457828,1741183853655,-632.87,0.00011372,2]
[355457829,1741183853665,-216.14,0.00011372,2]
[355457830,1741183853674,-500.0,0.00011372,2]
[355457831,1741183853684,-676.5,0.00011372,2]
[355457832,1741183853693,-500.0,0.00011372,2]
[355457833,1741183853703,-500.0,0.00011372,2]
[355457834,1741183853713,-664.32,0.00011372,2]
[355457835,1741183853722,-1326.22,0.00011372,2]
[355457836,1741183853731,-500.0,0.00011372,2]
[355457837,1741183853740,-658.05,0.00011372,2]
[355457838,1741183853750,-500.0,0.00011372,2]
[355457839,1741183853760,-654.69,0.00011372,2]
[355457840,1741183853770,-500.0,0.00011372,2]
[355457841,1741183853779,-1012.57,0.00011372,2]
[355457842,1741183853789,-1286.19,0.00011372,2]
[355457843,1741183853799,-511.65354707,0.00011372,2]
[355457844,1741183853811,-6633.72,0.00011372,2]
[355457845,1741183853821,-1414.04,0.00011372,2]
[355457846,1741183853831,-805.71,0.00011372,2]
[355457847,1741183853840,-500.0,0.00011372,2]
[355457848,1741183853851,-1462.11,0.00011372,2]
[355457849,1741183853861,-1924.84,0.00011372,2]
[355457850,1741183853870,-1345.22,0.00011372,2]
[355457851,1741183853881,-1700.53,0.00011372,2]
[355457852,1741183853891,-1096.22,0.00011372,2]
[355457853,1741183853902,-1173.82,0.00011372,2]
[355457854,1741183853914,-283.22344714,0.00011372,2]
[355457855,1741183853923,-582.06,0.00011372,2]
[355457856,1741183853933,-259.48544933,0.00011372,2]
[355457857,1741183853942,-660.1,0.00011372,2]
[355457858,1741183853952,-600.5,0.00011372,2]
[355457859,1741183853962,-1031.21,0.00011372,2]
[355457860,1741183853972,-500.0,0.00011372,2]
[355457861,1741183853982,-500.0,0.00011372,2]
[355457862,1741183853998,-500.0,0.00011372,2]
[355457863,1741183854007,-1722.73,0.00011372,2]
[355457864,1741183854017,-329.33370432,0.00011372,2]
[355457865,1741183854026,-2497.48,0.00011372,2]
[355457866,1741183854035,-1724.44,0.00011372,2]
[355457867,1741183854044,-793.75,0.00011372,2]
[355457868,1741183854054,-500.0,0.00011372,2]
[355457869,1741183854063,-721.97,0.00011372,2]
[355457870,1741183854073,-813.12,0.00011372,2]
[355457871,1741183854082,-6884.9,0.00011372,2]
[355457872,1741183854092,-5878.99,0.00011372,2]
[355457873,1741183854102,-2939.97,0.00011372,2]
[355457874,1741183854111,-720.46,0.00011372,2]
[355457875,1741183854120,-1162.43,0.00011372,2]
[355457876,1741183854130,-1626.45,0.00011372,2]
[355457877,1741183854139,-1074.3,0.00011372,2]
[355457878,1741183854148,-500.0,0.00011372,2]
[355457879,1741183854157,-5700.24,0.00011372,2]
[355457880,1741183854167,-693.09,0.00011372,2]
[355457881,1741183854175,-546.18,0.00011372,2]
[355457882,1741183854185,-1749.86,0.00011372,2]
[355457883,1741183854195,-2748.99,0.00011372,2]
[355457884,1741183854204,-2020.47,0.00011372,2]
[355457885,1741183854216,-1830.31,0.00011372,2]
[355457886,1741183854225,-6801.47,0.00011372,2]
[355457887,1741183854234,-818.59,0.00011372,2]
[355457888,1741183854244,-553.65,0.00011372,2]
[355457889,1741183854253,-1622.05,0.00011372,2]
[355457890,1741183854263,-3508.18,0.00011372,2]
[355457891,1741183854273,-553.02,0.00011372,2]
[355457892,1741183854282,-2063.48,0.00011372,2]
[355457893,1741183854292,-775.1,0.00011372,2]
[355457894,1741183854301,-524.6,0.00011372,2]
[355457895,1741183854311,-3125.8,0.00011372,2]
[355457896,1741183854321,-912.1,0.00011372,2]
[355457897,1741183854330,-2269.27,0.00011372,2]
[355457898,1741183854340,-1951.42,0.00011372,2]
[355457899,1741183854351,-757.97,0.00011372,2]
[355457900,1741183854360,-840.66,0.00011372,2]
[355457901,1741183854370,-845.14,0.00011372,2]
[355457902,1741183854379,-1376.3,0.00011372,2]
[355457903,1741183854390,-729.67828226,0.00011372,2]
[355457904,1741183854405,-833.513565,0.00011372,2]
[355457905,1741183854418,-451.44815274,0.00011372,2]
[355457906,1741183854427,-176.32564753,0.00011372,2]
[355457907,1741183854438,-743.88844783,0.00011372,2]
[355457908,1741183855368,-30.91590464,0.00011372,2]
[355457909,1741183855377,-251.43313636,0.00011372,2]
[355457910,1741183855389,-270.90357832,0.00011372,2]
[355457911,1741183855422,-560.47152291,0.00011372,2]
[355457912,1741183855435,-743.46176241,0.00011372,2]
[355457913,1741183855444,-500.0,0.00011372,2]
[355457914,1741183855453,-1297.95,0.00011372,2]
[355457915,1741183855465,-7011.95,0.00011372,2]
[355457916,1741183855474,-3077.44,0.00011372,2]
[355457917,1741183855484,-1472.43,0.00011372,2]
[355457918,1741183855493,-1741.63,0.00011372,2]
[355457919,1741183855502,-6208.09,0.00011372,2]
[355457920,1741183855512,-1825.67,0.00011372,2]
[355457921,1741183855521,-950.12,0.00011372,2]
[355457922,1741183855531,-975.0,0.00011372,2]
[355457923,1741183855541,-9903.13,0.00011372,2]
[355457924,1741183855550,-1655.98,0.00011372,2]
[355457925,1741183855560,-500.0,0.00011372,2]
[355457926,1741183855570,-11564.69,0.00011372,2]
[355457927,1741183855580,-1411.86,0.00011372,2]
[355457928,1741183855590,-563.09,0.00011372,2]
[355457929,1741183855599,-887.93,0.00011372,2]
[355457930,1741183855609,-500.0,0.00011372,2]
[355457931,1741183855619,-916.65,0.00011372,2]
[355457932,1741183855628,-648.65,0.00011372,2]
[355457933,1741183855638,-4180.55,0.00011372,2]
[355457934,1741183855647,-500.0,0.00011372,2]
[355457935,1741183855657,-701.18,0.00011372,2]
[355457936,1741183855666,-1950.63,0.00011372,2]
[355457937,1741183855675,-500.0,0.00011372,2]
[355457938,1741183855685,-609.64,0.00011372,2]
[355457939,1741183855695,-500.0,0.00011372,2]
[355457940,1741183855704,-2690.53,0.00011372,2]
[355457941,1741183855715,-1802.35,0.00011372,2]
[355457942,1741183855725,-972.64,0.00011372,2]
[355457943,1741183855734,-540.12,0.00011372,2]
[355457944,1741183855744,-500.0,0.00011372,2]
[355457945,1741183855753,-887.63,0.00011372,2]
[355457946,1741183855762,-546.87,0.00011372,2]
[355457947,1741183855771,-678.85,0.00011372,2]
[355457948,1741183855781,-2068.33,0.00011372,2]
[355457949,1741183855791,-1480.16,0.00011372,2]
[355457950,1741183855803,-772.0,0.00011373,2]
[355457951,1741183855813,-871.09,0.00011373,2]
[355457952,1741183855822,-500.0,0.00011373,2]
[355457953,1741183855835,-535.93,0.00011373,2]
[355457954,1741183855848,-500.0,0.00011373,2]
[355457955,1741183855864,-500.0,0.00011373,2]
[355457956,1741183855877,-500.0,0.00011373,2]
[355457957,1741183855889,-900.2,0.00011373,2]
[355457958,1741183855903,-500.0,0.00011373,2]
[355457959,1741183855916,-500.0,0.00011373,2]
[355457960,1741183855929,-500.0,0.00011373,2]
[355457961,1741183855943,-500.0,0.00011373,2]
[355457962,1741183855957,-500.0,0.00011373,2]
[355457963,1741183855972,-587.5,0.00011373,2]
[355457964,1741183855985,-500.0,0.00011373,2]
[355457965,1741183855997,-500.0,0.00011373,2]
[355457966,1741183856008,-500.0,0.00011373,2]
[355457967,1741183856022,-500.0,0.00011373,2]
[355457968,1741183856036,-500.0,0.00011373,2]
[355457969,1741183856049,-527.82487137,0.00011373,2]
[355457970,1741183856062,-500.0,0.00011373,2]
[355457971,1741183856075,-584.62,0.00011373,2]
[355457972,1741183856089,-633.77,0.00011373,2]
[355457973,1741183856102,-500.0,0.00011373,2]
[355457974,1741183856117,-500.0,0.00011373,2]
[355457975,1741183856131,-500.0,0.00011373,2]
[355457976,1741183856143,-500.0,0.00011373,2]
[355457977,1741183856157,-500.0,0.00011373,2]
[355457978,1741183856169,-500.0,0.00011373,2]
[355457979,1741183856182,-500.0,0.00011373,2]
[355457980,1741183856197,-500.0,0.00011373,2]
[355457981,1741183856211,-700.42,0.00011373,2]
[355457982,1741183856224,-798.35,0.00011373,2]
[355457983,1741183856234,-500.0,0.00011373,2]
[355457984,1741183856246,-654.01,0.00011373,2]
[355457985,1741183856258,-904.19,0.00011373,2]
[355457986,1741183856274,-789.91,0.00011373,2]
[355457987,1741183856285,-500.0,0.00011373,2]
[355457988,1741183856296,-1047.34,0.00011373,2]
[355457989,1741183856306,-755.24,0.00011373,2]
[355457990,1741183856319,-500.0,0.00011373,2]
[355457991,1741183856334,-500.0,0.00011373,7]
[355457992,1741183856347,-673.7,0.00011373,2]
[355457993,1741183856358,-500.0,0.00011373,2]
[355457994,1741183856369,-1038.4,0.00011373,2]
[355457995,1741183856380,-880.15,0.00011373,2]
[355457996,1741183856391,-500.0,0.00011373,2]
[355457997,1741183856403,-500.0,0.00011373,2]
[355457998,1741183856419,-584.89,0.00011373,2]
[355457999,1741183856431,-688.81,0.00011373,2]
[355458000,1741183856442,-699.34,0.00011373,2]
[355458001,1741183856454,-201.36750872,0.00011373,2]
[355458002,1741183856467,-771.13,0.00011373,2]
[355458003,1741183856479,-665.91,0.00011373,2]
[355458004,1741183856490,-1160.31,0.00011373,2]
[355458005,1741183856502,-1249.64,0.00011373,2]
[355458006,1741183856514,-1585.63,0.00011373,2]
[355458007,1741183856526,-1037.06,0.00011373,2]
[355458008,1741183856538,-500.0,0.00011373,2]
[355458009,1741183856549,-789.05,0.00011373,2]
[355458010,1741183856561,-500.0,0.00011373,2]
[355458011,1741183856573,-801.03,0.00011373,2]
[355458012,1741183856585,-902.02,0.00011373,2]
[355458013,1741183856597,-1463.47,0.00011373,2]
[355458014,1741183856608,-703.68,0.00011373,2]
[355458015,1741183856619,-500.0,0.00011373,2]
[355458016,1741183856631,-684.72,0.00011373,2]
[355458017,1741183856643,-500.0,0.00011373,2]
[355458018,1741183856655,-500.0,0.00011373,2]
[355458019,1741183856666,-695.54,0.00011373,2]
[355458020,1741183856678,-1112.93,0.00011373,2]
[355458021,1741183856690,-1168.33,0.00011373,2]
[355458022,1741183856702,-1165.69,0.00011373,2]
[355458023,1741183856714,-679.52,0.00011373,2]
[355458024,1741183856726,-500.0,0.00011373,2]
[355458025,1741183856738,-1340.83,0.00011373,2]
[355458026,1741183856750,-500.0,0.00011373,2]
[355458027,1741183856761,-500.0,0.00011373,2]
[355458028,1741183856773,-500.0,0.00011373,2]
[355458029,1741183856785,-500.0,0.00011373,2]
[355458030,1741183856797,-500.0,0.00011373,2]
[355458031,1741183856811,-2076.1,0.00011373,2]
[355458032,1741183856823,-500.0,0.00011373,2]
[355458033,1741183856835,-500.0,0.00011373,2]
[355458034,1741183856847,-1010.68,0.00011373,2]
[355458035,1741183856861,-704.95,0.00011373,2]
[355458036,1741183856872,-655.06,0.00011373,2]
[355458037,1741183856885,-1102.53,0.00011373,2]
[355458038,1741183856897,-1143.02,0.00011373,2]
[355458039,1741183856910,-500.0,0.00011373,2]
[355458040,1741183856921,-1181.9,0.00011373,2]
[355458041,1741183856932,-500.0,0.00011373,2]
[355458042,1741183856944,-500.0,0.00011373,2]
[355458043,1741183856955,-500.0,0.00011373,2]
[355458044,1741183856968,-500.0,0.00011373,2]
[355458045,1741183856979,-500.0,0.00011373,2]
[355458046,1741183856990,-500.0,0.00011373,2]
[355458047,1741183857002,-500.0,0.00011373,2]
[355458048,1741183857012,-500.0,0.00011373,2]
[355458049,1741183857024,-891.05,0.00011373,2]
[355458050,1741183857035,-617.47,0.00011373,2]
[355458052,1741183857047,-986.4,0.00011373,2]
[355458053,1741183857058,-1208.81,0.00011373,2]
[355458054,1741183857070,-500.0,0.00011373,2]
[355458055,1741183857081,-500.0,0.00011373,2]
[355458056,1741183857092,-1136.41,0.00011373,2]
[355458057,1741183857104,-738.8,0.00011373,2]
[355458058,1741183857115,-500.0,0.00011373,2]
[355458059,1741183857127,-969.33,0.00011373,2]
[355458060,1741183857138,-500.0,0.00011373,2]
[355458061,1741183857149,-664.0,0.00011373,2]
[355458062,1741183857160,-500.0,0.00011373,2]
[355458063,1741183857171,-508.97963779,0.00011373,2]
[355458064,1741183857182,-500.0,0.00011373,2]
[355458065,1741183857193,-675.82,0.00011373,2]
[355458066,1741183857205,-500.0,0.00011373,2]
[355458067,1741183857216,-500.0,0.00011373,2]
[355458068,1741183857228,-500.0,0.00011373,2]
[355458069,1741183857240,-1049.07,0.00011373,2]
[355458070,1741183857252,-500.0,0.00011373,2]
[355458071,1741183857264,-733.24,0.00011373,2]
[355458072,1741183857275,-804.12,0.00011373,2]
[355458073,1741183857287,-500.0,0.00011373,2]
[355458074,1741183857299,-500.0,0.00011373,2]
[355458075,1741183857311,-500.0,0.00011373,2]
[355458076,1741183857323,-313.56018759,0.00011373,2]
[355458077,1741183857335,-500.0,0.00011373,2]
[355458078,1741183857349,-1481.61,0.00011373,2]
[355458079,1741183857360,-500.0,0.00011373,2]
[355458080,1741183857372,-500.0,0.00011373,2]
[355458081,1741183857384,-1021.99,0.00011373,2]
[355458082,1741183857395,-1397.09,0.00011373,2]
[355458083,1741183857407,-1496.71,0.00011373,2]
[355458084,1741183857419,-500.0,0.00011373,2]
[355458085,1741183857431,-500.0,0.00011373,2]
[355458086,1741183857442,-1667.49,0.00011373,2]
[355458087,1741183857454,-500.0,0.00011373,2]
[355458088,1741183857465,-1122.22,0.00011373,2]
[355458089,1741183857477,-804.35,0.00011373,2]
[355458090,1741183857489,-1307.55,0.00011373,2]
[355458091,1741183857500,-500.0,0.00011373,2]
[355458092,1741183857513,-500.0,0.00011373,2]
[355458093,1741183857525,-500.0,0.00011373,2]
[355458094,1741183857536,-500.0,0.00011373,2]
[355458095,1741183857548,-500.0,0.00011373,2]
[355458096,1741183857559,-1335.5,0.00011373,2]
[355458097,1741183857571,-1265.02,0.00011373,2]
[355458098,1741183857583,-500.0,0.00011373,2]
[355458099,1741183857594,-500.0,0.00011373,2]
[355458100,1741183857606,-719.82,0.00011373,2]
[355458101,1741183857618,-916.75,0.00011373,2]
[355458102,1741183857629,-954.41,0.00011373,2]
[355458103,1741183857641,-713.55,0.00011373,2]
[355458104,1741183857653,-500.0,0.00011373,2]
[355458105,1741183857664,-500.0,0.00011373,2]
[355458106,1741183857675,-1068.79,0.00011373,2]
[355458107,1741183857687,-500.0,0.00011373,2]
[355458108,1741183857699,-500.0,0.00011373,2]
[355458109,1741183857712,-929.05,0.00011373,2]
[355458110,1741183857724,-1029.91,0.00011373,2]
[355458111,1741183857736,-702.59,0.00011373,2]
[355458112,1741183857748,-1312.1,0.00011373,2]
[355458113,1741183857759,-500.0,0.00011373,2]
[355458114,1741183857771,-500.0,0.00011373,2]
[355458115,1741183857783,-500.0,0.00011373,2]
[355458116,1741183857795,-567.45,0.00011373,2]
[355458117,1741183857810,-513.29908932,0.00011373,2]
[355458118,1741183857821,-500.0,0.00011373,2]
[355458119,1741183857833,-1085.86,0.00011373,2]
[355458120,1741183857844,-689.76,0.00011373,2]
[355458121,1741183857856,-500.0,0.00011373,2]
[355458122,1741183857868,-1213.45,0.00011373,2]
[355458123,1741183857879,-500.0,0.00011373,2]
[355458124,1741183857890,-903.7,0.00011373,2]
[355458125,1741183857902,-1415.28,0.00011373,2]
[355458126,1741183857913,-500.0,0.00011373,2]
[355458127,1741183857925,-1774.08,0.00011373,2]
[355458128,1741183857936,-2005.87,0.00011373,2]
[355458129,1741183857948,-1471.26,0.00011373,2]
[355458130,1741183857959,-500.0,0.00011373,2]
[355458131,1741183857971,-500.0,0.00011373,2]
[355458132,1741183857982,-500.0,0.00011373,2]
[355458133,1741183857993,-517.35,0.00011373,2]
[355458134,1741183858004,-566.93,0.00011373,2]
[355458135,1741183858015,-1253.41,0.00011373,2]
[355458136,1741183858026,-1323.58,0.00011373,2]
[355458137,1741183858036,-500.0,0.00011373,2]
[355458138,1741183858048,-500.0,0.00011373,2]
[355458139,1741183858058,-500.0,0.00011373,2]
[355458140,1741183858069,-528.21,0.00011373,2]
[355458141,1741183858079,-543.51270075,0.00011373,2]
[355458142,1741183858090,-500.0,0.00011373,2]
[355458143,1741183858101,-1812.49,0.00011373,2]
[355458144,1741183858112,-500.0,0.00011373,2]
[355458145,1741183858123,-569.54,0.00011373,2]
[355458146,1741183858134,-2454.48,0.00011373,2]
[355458147,1741183858145,-500.0,0.00011373,2]
[355458148,1741183858156,-1929.9,0.00011373,2]
[355458149,1741183858167,-1022.27,0.00011373,2]
[355458150,1741183858177,-500.0,0.00011373,2]
[355458151,1741183858188,-626.02,0.00011373,2]
[355458152,1741183858198,-2973.97,0.00011373,2]
[355458153,1741183858210,-1580.9,0.00011373,2]
[355458154,1741183858221,-2873.89,0.00011373,2]
[355458155,1741183858232,-500.0,0.00011373,2]
[355458156,1741183858243,-500.0,0.00011373,2]
[355458157,1741183858254,-989.9,0.00011373,2]
[355458158,1741183858265,-500.0,0.00011373,2]
[355458159,1741183858277,-500.0,0.00011373,2]
[355458160,1741183858287,-500.0,0.00011373,2]
[355458161,1741183858298,-1868.92,0.00011373,2]
[355458162,1741183858308,-795.25,0.00011373,2]
[355458163,1741183858317,-500.0,0.00011373,2]
[355458164,1741183858327,-1331.77,0.00011373,2]
[355458165,1741183858336,-1298.46,0.00011373,2]
[355458166,1741183858346,-500.0,0.00011373,2]
[355458167,1741183858355,-500.0,0.00011373,2]
[355458168,1741183858366,-1273.35167955,0.0001138,2]
[355458169,1741183858375,-396.59600401,0.0001138,2]
[355458170,1741183858385,-568.02956136,0.00011388,2]
[355458171,1741183858395,-207.56570626,0.00011388,2]
[355458172,1741183858404,-161.04,0.0001139,2]
[355458173,1741183858414,-27904.28580606,0.00011396,2]
[355458174,1741183858423,-500.0,0.00011408,2]
[355458175,1741183858433,-568.64,0.00011408,2]
[355458176,1741183858443,-2139.97,0.00011408,2]
[355458177,1741183858453,-814.13,0.00011408,2]
[355458178,1741183858463,-1942.02,0.00011408,2]
[355458179,1741183858473,-2031.79,0.00011408,2]
[355458180,1741183858484,-1510.89,0.00011408,2]
[355458181,1741183858495,-3293.01,0.00011408,2]
[355458182,1741183858504,-7792.08,0.00011408,2]
[355458183,1741183858514,-5541.14,0.00011408,2]
[355458184,1741183858524,-27344.22,0.00011408,2]
[355458185,1741183858534,-2580.94,0.00011408,2]
[355458186,1741183858543,-4077.25,0.00011408,2]
[355458187,1741183858553,-31131.57,0.00011408,2]
[355458188,1741183858563,-1040.04,0.00011408,2]
[355458189,1741183858572,-3948.74,0.00011408,2]
[355458190,1741183858581,-1170.29,0.00011408,2]
[355458191,1741183858591,-3122.44,0.00011408,2]
[355458192,1741183858600,-5950.58,0.00011408,2]
[355458193,1741183858610,-1989.17,0.00011408,2]
[355458194,1741183858619,-5674.95,0.00011408,2]
[355458195,1741183858629,-4665.72,0.00011408,2]
[355458196,1741183858637,-4057.52,0.00011408,2]
[355458197,1741183859085,-1346.72,0.00011409,2]
[355458198,1741183859117,-1343.41,0.00011409,2]
[355458199,1741183859138,-2117.99,0.00011409,2]
[355458200,1741183859156,-1083.85,0.00011409,2]
[355458201,1741183859167,-1359.17,0.00011409,2]
[355458202,1741183859176,-500.0,0.00011409,2]
[355458203,1741183859186,-1704.01,0.00011409,2]
[355458204,1741183859196,-2107.12,0.00011409,2]
[355458205,1741183859205,-1174.88,0.00011409,2]
[355458206,1741183859215,-1346.84,0.00011409,2]
[355458207,1741183859225,-500.0,0.00011409,2]
[355458208,1741183859234,-1934.0,0.00011409,2]
[355458209,1741183859243,-1009.95,0.00011409,2]
[355458210,1741183859253,-3241.9,0.00011409,2]
[355458211,1741183859263,-2143.09,0.00011409,2]
[355458212,1741183859272,-500.0,0.00011409,2]
[355458213,1741183859282,-2128.2,0.00011409,2]
[355458214,1741183859291,-1708.57,0.00011409,2]
[355458215,1741183859300,-2370.65,0.00011409,2]
[355458216,1741183859309,-1073.68,0.00011409,2]
[355458217,1741183859318,-2460.63,0.00011409,2]
[355458218,1741183859328,-1976.83,0.00011409,2]
[355458219,1741183859337,-3361.28,0.00011409,2]
[355458220,1741183859347,-1291.06,0.00011409,2]
[355458221,1741183859356,-3593.81,0.00011409,2]
[355458222,1741183859365,-1595.24,0.00011409,2]
[355458223,1741183859375,-2027.29,0.00011409,2]
[355458224,1741183859384,-951.78,0.00011409,2]
[355458225,1741183859395,-2905.24,0.00011409,2]
[355458226,1741183859404,-901.87,0.00011409,2]
[355458227,1741183859414,-151.0,0.0001141,2]
[355458228,1741183859423,-500.0,0.0001141,2]
[355458229,1741183859434,-222.87,0.0001141,2]
[355458230,1741183859445,-554.93,0.0001141,2]
[355458231,1741183859454,-1404.08,0.0001141,2]
[355458232,1741183859464,-1000.0,0.0001141,2]
[355458233,1741183859473,-200.0,0.00011411,2]
[355458234,1741183859483,-200.0,0.00011411,2]
[355458235,1741183859492,-200.0,0.00011411,2]
[355458236,1741183859501,-3654.87338,0.00011411,2]
[355458237,1741183859512,-158.0,0.00011411,3]
[355458238,1741183859521,-200.0,0.00011411,2]
[355458239,1741183859531,-2762.0,0.00011423,2]
[355458240,1741183859541,-1120.3,0.00011423,2]
[355458241,1741183859550,-6077.37,0.00011423,2]
[355458242,1741183859560,-10565.7,0.00011423,2]
[355458243,1741183859569,-5308.54,0.00011423,2]
[355458244,1741183859579,-517.95,0.00011438,2]
[355458245,1741183859588,-568.02956136,0.00011466,2]
[355458246,1741183859597,-207.56570626,0.00011466,2]
[355458247,1741183859607,-505766.68206628,0.0001147,2]
[355458248,1741183859616,-59038.80826214,0.0001147,2]
[355458249,1741183859625,-500.0,0.00011473,2]
[355458250,1741183859634,-500.0,0.00011475,2]
[355458251,1741183859644,-85674.82160141,0.00011476,2]
[355458252,1741183859653,-12588.5416592,0.00011476,2]
[355458253,1741183859662,-151.0,0.00011476,2]
[355458254,1741183859671,-3861.233065,0.00011476,2]
[355458255,1741183859681,-151.0,0.00011476,2]
[355458256,1741183859691,-550.0,0.00011478,2]
[355458257,1741183859700,-151.0,0.00011479,2]
[355458258,1741183859708,-4619.17,0.00011479,2]
[355458259,1741183859718,-500.0,0.00011479,2]
[355458260,1741183859727,-500.0,0.00011479,2]
[355458261,1741183859737,-500.0,0.00011479,2]
[355458262,1741183859745,-500.0,0.00011479,2]
[355458263,1741183859755,-500.0,0.00011479,2]
[355458264,1741183859764,-500.0,0.00011479,2]
[355458265,1741183859772,-500.0,0.00011479,2]
[355458266,1741183859782,-1296050.90875678,0.0001148,2]
[355458267,1741183859791,-151.0,0.0001148,2]
[355458268,1741183859803,-151.0,0.0001148,2]
[355458269,1741183859814,-151.0,0.0001148,2]
[355458270,1741183859822,-151.0,0.0001148,2]
[355458271,1741183859831,-262.913132,0.0001148,2]
[355458272,1741183859841,-747.1867446,0.00011484,2]
[355458273,1741183859850,-186.89065668,0.00011492,2]
[355458274,1741183859860,-200.0,0.000115,5]
[355458275,1741183859869,-300.0,0.000115,3]
[355458276,1741183859879,-161.04,0.000115,2]
[355458277,1741183859889,-2751.0,0.00011507,2]
[355458278,1741183859898,-10919.4348015,0.00011515,2]
[355458279,1741183859907,-200.0,0.00011525,2]
[355458280,1741183859916,-200.0,0.00011525,2]
[355458281,1741183859926,-248.0,0.0001154,2]
[355458282,1741183859936,-568.02956136,0.00011544,2]
[355458283,1741183859946,-207.56570626,0.00011544,2]
[355458284,1741183859955,-900.54475665,0.0001157,2]